bitfinex-derivatives/quotes_SOLF0:USTF0_20250903
["timestamp","ask_amount","ask_price","bid_price","bid_amount"]
[1756876078897,1.74423776,209.9,209.83,7.35]
[1756876080192,1.74423776,209.9,209.84,1.74423776]
[1756876080390,1.74423776,209.92,209.85,7.35]
[1756876081393,1.74423776,209.9,209.82,1.74423776]
[1756876082794,1.74423776,209.9,209.83,7.35]
[1756876083590,23.5,209.94,209.85,81.85888024]
[1756876083591,1.74423776,209.92,209.85,81.85888024]
[1756876083787,1.74423776,209.92,209.85,89.20888024]
[1756876085493,45.2,209.94,209.85,89.20888024]
[1756876086696,81.16534986,209.95,209.86,7.35]
[1756876086893,5.33820304,209.97,209.9,2.72534986]
[1756876087098,293.62,210.01,209.91,7.35]
[1756876090101,293.62,210.01,209.91,10.07534986]
[1756876090698,293.62,210.01,209.91,7.35]
[1756876091293,293.62,210.01,209.89,2.72534986]
[1756876091294,301.6835529,210.01,209.89,2.72534986]
[1756876091495,2.72534986,209.98,209.88,7.35]
[1756876091702,5.33820304,209.99,209.88,7.35]
[1756876091901,419.3235529,210.01,209.9,7.73]
[1756876093602,416.59820304,210.01,209.9,7.73]
[1756876093808,5.33820304,210.0,209.9,7.73]
[1756876094605,5.33820304,210.0,209.94,81.85888024]
[1756876095709,416.59820304,210.01,209.94,81.85888024]
[1756876097105,5.33820304,210.0,209.94,81.85888024]
[1756876097605,117.56,210.0,209.94,81.85888024]
[1756876097910,122.89820304,210.02,209.95,7.73]
[1756876099011,5.33820304,210.03,209.95,10.45534986]
[1756876099313,117.58,210.04,209.96,7.73]
[1756876100107,117.58,210.04,209.94,81.85888024]
[1756876100407,5.33820304,210.01,209.94,81.85888024]
[1756876100709,2.72534986,210.02,209.94,89.58888024]
[1756876100710,8.0635529,210.02,209.94,89.58888024]
[1756876100902,2.72534986,210.02,209.94,89.58888024]
[1756876102415,2.72534986,210.02,209.94,81.85888024]
[1756876102815,2.72534986,210.01,209.94,81.85888024]
[1756876105614,2.72534986,210.01,209.95,7.73]
[1756876105816,5.33820304,210.03,209.96,81.85888024]
[1756876106017,123.33820304,210.03,209.96,81.85888024]
[1756876106211,118.0,210.03,209.96,81.85888024]
[1756876107518,123.33820304,210.03,209.96,81.85888024]
[1756876112124,2.72534986,210.01,209.96,81.85888024]
[1756876112323,2.72534986,210.01,209.96,89.58888024]
[1756876112721,2.72534986,210.01,209.96,81.85888024]
[1756876113721,8.0635529,210.01,209.96,81.85888024]
[1756876114125,5.33820304,210.0,209.96,81.85888024]
[1756876117127,8.0635529,210.0,209.96,81.85888024]
[1756876117326,8.0635529,210.0,209.96,89.58888024]
[1756876118026,8.0635529,210.0,209.96,81.85888024]
[1756876119318,5.33820304,209.99,209.96,81.85888024]
[1756876119524,8.0635529,210.0,209.96,81.85888024]
[1756876119819,5.33820304,209.99,209.96,81.85888024]
[1756876120928,5.33820304,209.99,209.96,89.58888024]
[1756876121130,122.97820304,209.99,209.96,89.58888024]
[1756876122230,5.33820304,209.99,209.96,89.58888024]
[1756876122429,5.33820304,210.0,209.97,7.5]
[1756876122632,36.03820304,210.01,209.97,81.85888024]
[1756876122819,36.03820304,210.01,209.98,7.5]
[1756876123324,5.33820304,210.0,209.97,81.85888024]
[1756876123726,36.03820304,210.01,209.97,81.85888024]
[1756876123930,36.03820304,210.01,209.97,89.35888024]
[1756876124231,5.33820304,210.0,209.97,89.35888024]
[1756876124631,5.33820304,210.0,209.97,81.85888024]
[1756876124926,36.03820304,210.01,209.98,7.5]
[1756876125332,36.03820304,210.01,209.97,81.85888024]
[1756876126133,36.03820304,210.01,209.98,7.5]
[1756876126333,5.33820304,210.0,209.98,7.5]
[1756876126727,5.33820304,210.02,209.98,7.5]
[1756876126933,5.33820304,210.03,209.98,7.5]
[1756876127638,5.33820304,210.03,209.97,81.85888024]
[1756876128029,5.33820304,210.03,209.98,7.5]
[1756876129336,5.33820304,210.03,209.97,81.85888024]
[1756876129539,5.33820304,210.03,209.98,7.5]
[1756876129738,5.33820304,210.02,209.97,81.85888024]
[1756876129937,5.33820304,210.02,209.98,7.5]
[1756876130133,5.33820304,210.02,209.97,81.85888024]
[1756876131135,5.33820304,210.01,209.97,81.85888024]
[1756876131330,5.33820304,210.01,209.98,7.5]
[1756876132137,5.33820304,210.02,209.98,7.5]
[1756876132334,5.33820304,210.01,209.98,7.5]
[1756876132536,5.33820304,210.01,209.97,81.85888024]
[1756876133036,5.33820304,210.02,209.97,81.85888024]
[1756876133232,5.33820304,210.02,209.99,89.35888024]
[1756876133737,5.33820304,210.01,209.99,89.35888024]
[1756876134736,2.72534986,210.0,209.99,81.85888024]
[1756876135034,10.71295229,210.0,209.99,81.85888024]
[1756876135536,2.72534986,210.0,209.99,81.85888024]
[1756876137336,2.72534986,210.0,209.97,81.85888024]
[1756876137531,8.02192102,209.98,209.97,81.85888024]
[1756876137728,64.12,209.98,209.97,81.85888024]
[1756876139138,98.66054857,209.98,209.97,81.85888024]
[1756876139331,98.66054857,209.98,209.94,89.35888024]
[1756876139332,98.66054857,209.98,209.86,7.5]
[1756876139534,5.34703238,209.95,209.86,7.5]
[1756876140340,5.34703238,209.94,209.86,7.5]
[1756876140542,5.34703238,209.94,209.85,117.26]
[1756876140543,5.34703238,209.95,209.87,2.72534986]
[1756876140735,5.34703238,209.95,209.88,7.5]
[1756876142040,8.02054857,209.98,209.88,7.5]
[1756876142041,5.34703238,209.96,209.88,7.5]
[1756876143444,5.34703238,209.95,209.88,7.5]
[1756876143644,5.34703238,209.95,209.94,89.35888024]
[1756876143846,5.34703238,209.96,209.94,89.35888024]
[1756876144447,5.34703238,209.96,209.95,7.5]
[1756876144946,5.34703238,209.96,209.94,81.85888024]
[1756876145246,5.34703238,209.96,209.95,7.5]
[1756876145447,5.34703238,209.96,209.94,81.85888024]
[1756876145647,5.34703238,209.96,209.94,89.35888024]
[1756876145946,5.34703238,209.96,209.95,7.5]
[1756876150855,87.20591262,209.96,209.95,7.5]
[1756876151055,79.27591262,209.96,209.95,7.5]
[1756876151256,71.34591262,209.96,209.95,7.5]
[1756876156051,71.34591262,209.96,209.94,81.85888024]
[1756876156052,79.01591262,209.96,209.94,81.85888024]
[1756876157956,71.34591262,209.96,209.94,89.68888024]
[1756876158253,71.34591262,209.96,209.95,7.83]
[1756876160658,71.34591262,209.96,209.94,81.85888024]
[1756876162154,79.01591262,209.95,209.94,81.85888024]
[1756876162856,197.89925818,209.95,209.94,81.85888024]
[1756876163558,188.48591262,209.95,209.94,81.85888024]
[1756876164155,71.34591262,209.95,209.94,81.85888024]
[1756876164458,79.01591262,209.95,209.94,81.85888024]
[1756876164660,71.34591262,209.95,209.94,81.85888024]
[1756876165655,71.34591262,209.95,209.94,89.68888024]
[1756876169465,79.01591262,209.95,209.94,81.85888024]
[1756876169859,71.34591262,209.95,209.94,81.85888024]
[1756876170563,196.11591262,209.95,209.94,81.85888024]
[1756876171064,188.44591262,209.95,209.94,81.85888024]
[1756876172862,71.34591262,209.95,209.94,81.85888024]
[1756876173170,71.34591262,209.95,209.94,91.4322258]
[1756876173564,71.34591262,209.96,209.95,7.83]
[1756876173768,40.22899254,209.96,209.95,7.83]
[1756876175369,53.28,210.05,209.95,7.83]
[1756876175561,71.34591262,210.03,210.0,1.74334556]
[1756876176769,79.01591262,210.03,210.0,1.74334556]
[1756876178565,71.34591262,210.03,210.0,1.74334556]
[1756876181069,71.34591262,210.03,210.02,71.34591262]
[1756876183080,71.34591262,210.03,210.02,73.08925818]
[1756876187478,78.62591262,210.03,210.02,73.08925818]
[1756876187770,71.34591262,210.03,210.02,73.08925818]
[1756876187977,78.62591262,210.03,210.02,73.08925818]
[1756876188371,71.34591262,210.03,210.02,73.08925818]
[1756876199285,7.28,210.04,210.02,1.74334556]
[1756876200483,0.03251341,210.05,210.02,1.74334556]
[1756876200886,7.28,210.04,210.02,1.74334556]
[1756876203186,0.03251341,210.05,210.02,1.74334556]
[1756876203490,7.28,210.04,210.02,1.74334556]
[1756876203987,7.31251341,210.05,210.02,1.74334556]
[1756876204384,0.03251341,210.05,210.04,1.74334556]
[1756876205994,74.03006766,210.91,210.04,2.22334556]
[1756876205995,7.28,210.12,210.04,2.22334556]
[1756876206190,7.28,210.15,210.08,1.74334556]
[1756876206992,7.28,210.15,210.09,1.74334556]
[1756876207188,7.28,210.15,210.09,1.77583993]
[1756876207693,7.28,210.15,210.09,0.03249437]
[1756876211692,7.28,210.15,210.09,2.7515799]
[1756876212395,7.28,210.15,210.09,0.03249437]
[1756876213096,7.28,210.15,210.04,0.48]
[1756876213301,12.61465956,210.15,210.04,0.48]
[1756876213701,7.28,210.15,210.04,0.48]
[1756876214097,2.71908553,210.14,210.04,0.48]
[1756876214302,7.7,210.13,210.04,0.48]
[1756876216794,7.7,210.13,210.08,71.34591262]
[1756876216996,36.87908553,210.14,210.08,71.34591262]
[1756876217194,7.7,210.13,210.08,71.34591262]
[1756876217399,36.87908553,210.14,210.08,71.34591262]
[1756876217801,7.7,210.14,210.08,71.34591262]
[1756876217998,7.7,210.15,210.08,71.34591262]
[1756876218204,5.33465956,210.16,210.08,71.34591262]
[1756876219202,7.7,210.15,210.08,71.34591262]
[1756876220104,5.33465956,210.16,210.08,71.34591262]
[1756876220301,7.7,210.15,210.08,71.34591262]
[1756876220506,5.33465956,210.16,210.08,71.34591262]
[1756876220709,7.7,210.15,210.08,71.34591262]
[1756876221301,5.33465956,210.16,210.08,71.34591262]
[1756876221801,7.7,210.15,210.09,0.04]
[1756876222206,7.7,210.18,210.09,0.04]
[1756876224207,7.7,210.18,210.11,0.04]
[1756876227701,7.7,210.21,210.17,71.37591262]
[1756876228101,7.7,210.22,210.17,71.37591262]
[1756876228306,7.7,210.23,210.17,71.37591262]
[1756876231212,10.41908553,210.26,210.17,71.34591262]
[1756876231412,8.05374509,210.26,210.17,71.34591262]
[1756876231612,7.7,210.22,210.17,71.34591262]
[1756876231806,2.71908553,210.23,210.17,71.34591262]
[1756876232514,5.33465956,210.25,210.17,71.34591262]
[1756876232718,7.7,210.24,210.17,71.34591262]
[1756876235310,0.82812779,210.33,210.17,71.34591262]
[1756876235311,13.03465956,210.3,210.21,2.71908553]
[1756876235509,7.7,210.3,210.24,2.71908553]
[1756876235711,5.33465956,210.33,210.25,0.03]
[1756876235918,7.7,210.34,210.25,0.03]
[1756876237112,7.7,210.34,210.17,71.34591262]
[1756876237314,7.7,210.34,210.22,2.74908553]
[1756876238411,7.7,210.34,210.25,71.34591262]
[1756876238412,13.03465956,210.34,210.25,71.34591262]
[1756876238611,5.33465956,210.34,210.25,71.34591262]
[1756876239011,2.71908553,210.33,210.25,71.34591262]
[1756876239215,7.7,210.29,210.25,71.34591262]
[1756876239415,119.77908553,210.3,210.25,71.34591262]
[1756876239918,7.7,210.29,210.25,71.34591262]
[1756876240223,119.77908553,210.3,210.25,71.34591262]
[1756876240721,7.7,210.26,210.25,71.34591262]
[1756876241017,2.71908553,210.27,210.25,71.34591262]
[1756876241218,7.7,210.26,210.25,55.50591262]
[1756876241418,8.05374509,210.27,210.25,55.50591262]
[1756876241724,2.71908553,210.27,210.17,71.34591262]
[1756876241923,2.71908553,210.23,210.17,71.34591262]
[1756876242221,119.75908553,210.23,210.17,71.34591262]
[1756876243518,8.02661588,210.25,210.17,79.25591262]
[1756876243723,119.77908553,210.25,210.17,79.25591262]
[1756876244122,2.71908553,210.25,210.17,79.25591262]
[1756876245421,5.30753035,210.27,210.18,7.91]
[1756876245621,2.71908553,210.28,210.18,7.91]
[1756876245622,59.58,210.28,210.18,7.91]
[1756876246022,59.58,210.28,210.18,10.62908553]
[1756876246323,59.58,210.28,210.19,7.91]
[1756876246722,62.29908553,210.28,210.19,7.91]
[1756876247024,67.60661588,210.28,210.19,7.91]
[1756876247725,5.30753035,210.27,210.19,7.91]
[1756876248318,5.30753035,210.27,210.17,71.34591262]
[1756876249623,67.60661588,210.28,210.2,71.34591262]
[1756876249824,62.29908553,210.28,210.2,71.34591262]
[1756876250025,67.60661588,210.28,210.2,71.34591262]
[1756876252324,5.30753035,210.27,210.2,71.34591262]
[1756876252823,8.02661588,210.25,210.2,71.34591262]
[1756876253028,5.30753035,210.24,210.2,71.34591262]
[1756876253324,2.71908553,210.22,210.2,71.34591262]
[1756876253528,8.02661588,210.22,210.2,71.34591262]
[1756876253722,2.71908553,210.22,210.2,71.34591262]
[1756876255229,8.02661588,210.22,210.2,71.34591262]
[1756876255629,2.71908553,210.22,210.2,71.34591262]
[1756876256330,5.30753035,210.21,210.2,71.34591262]
[1756876256627,2.71908553,210.22,210.17,71.34591262]
[1756876256628,10.7396341,210.22,210.17,71.34591262]
[1756876256830,2.71908553,210.18,210.17,71.34591262]
[1756876257421,2.71908553,210.18,210.17,45.84642223]
[1756876257624,8.03201147,210.18,210.09,7.91]
[1756876262127,5.31292594,210.19,210.14,7.91]
[1756876262327,5.31292594,210.22,210.13,71.34591262]
[1756876262528,5.31292594,210.22,210.14,7.91]
[1756876264629,5.31292594,210.24,210.15,7.91]
[1756876264823,111.04054857,210.26,210.15,7.91]
[1756876264824,5.31292594,210.23,210.15,7.91]
[1756876265834,5.31292594,210.22,210.15,7.91]
[1756876266630,5.31292594,210.23,210.15,7.91]
[1756876267536,7.05214723,210.23,210.16,1.73922129]
[1756876267835,7.05214723,210.23,210.15,7.91]
[1756876268038,7.05214723,210.23,210.16,1.73922129]
[1756876268235,7.05214723,210.23,210.17,7.91]
[1756876269141,5.31292594,210.26,210.19,9.64922129]
[1756876269338,5.31292594,210.26,210.19,7.91]
[1756876269339,1.73922129,210.23,210.19,7.91]
[1756876269636,142.69182524,210.21,210.19,7.91]
[1756876270529,142.69182524,210.21,210.15,9.64922129]
[1756876271034,142.69182524,210.21,210.15,7.91]
[1756876271238,142.69182524,210.21,210.17,1.73922129]
[1756876271633,142.69182524,210.21,210.18,7.81]
[1756876271838,142.69182524,210.21,210.17,1.73922129]
[1756876272634,142.69182524,210.21,210.18,7.81]
[1756876273139,142.69182524,210.21,210.17,1.73922129]
[1756876273536,142.69182524,210.21,210.18,7.81]
[1756876273938,142.69182524,210.21,210.2,7.81]
[1756876274234,142.69182524,210.21,210.14,7.81]
[1756876274439,142.69182524,210.21,210.18,7.81]
[1756876274636,142.69182524,210.21,210.17,1.73922129]
[1756876275538,142.69182524,210.21,210.18,7.81]
[1756876275837,142.69182524,210.21,210.17,1.73922129]
[1756876276038,142.69182524,210.21,210.18,7.81]
[1756876278242,142.69182524,210.21,210.2,9.54922129]
[1756876280943,142.69182524,210.21,210.2,1.73922129]
[1756876281147,142.69182524,210.21,210.14,7.81]
[1756876281348,142.69182524,210.21,210.19,1.73922129]
[1756876281544,142.69182524,210.21,210.19,9.54922129]
[1756876283449,404.30287177,210.21,210.14,1.73922129]
[1756876285042,404.30287177,210.21,210.13,79.15591262]
[1756876286246,402.56365048,210.21,210.13,79.15591262]
[1756876286547,404.30287177,210.21,210.13,79.15591262]
[1756876286848,1.73922129,210.19,210.13,71.34591262]
[1756876287047,117.22,210.18,210.13,71.34591262]
[1756876290146,117.22,210.18,210.14,7.81]
[1756876290844,117.18,210.17,210.14,7.81]
[1756876291949,117.18,210.17,210.13,79.15591262]
[1756876293149,117.18,210.17,210.13,71.34591262]
[1756876293349,117.18,210.17,210.13,79.15591262]
[1756876295050,117.18,210.17,210.14,7.81]
[1756876296754,117.18,210.17,210.13,71.34591262]
[1756876296956,142.69182524,210.15,210.13,71.34591262]
[1756876299963,142.69182524,210.15,210.13,79.15591262]
[1756876301255,142.69182524,210.15,210.13,71.34591262]
[1756876301655,142.69182524,210.15,210.13,79.20591262]
[1756876302367,142.69182524,210.15,210.13,71.34591262]
[1756876305070,259.65182524,210.15,210.13,71.34591262]
[1756876308067,259.65182524,210.15,210.14,7.86]
[1756876308068,142.69182524,210.15,210.14,7.86]
[1756876308371,259.65182524,210.15,210.14,7.86]
[1756876308571,142.69182524,210.15,210.14,7.86]
[1756876309674,285.38365048,210.15,210.14,7.86]
[1756876310774,285.38365048,210.15,210.13,79.20591262]
[1756876313470,116.96,210.14,210.13,71.34591262]
[1756876313870,118.69922129,210.14,210.13,71.34591262]
[1756876314777,119.17922129,210.14,210.01,9.59922129]
[1756876314966,1.73922129,210.09,210.01,9.59922129]
[1756876315166,116.96,210.08,210.01,9.59922129]
[1756876315676,116.96,210.07,210.01,9.59922129]
[1756876315874,1.73922129,210.09,210.01,9.59922129]
[1756876316074,116.96,210.08,210.01,9.59922129]
[1756876316370,116.96,210.07,210.04,7.86]
[1756876316574,1.73922129,210.1,210.04,7.86]
[1756876316775,1.73922129,210.12,210.04,7.86]
[1756876316972,116.96,210.11,210.05,1.73922129]
[1756876317576,116.96,210.11,210.04,9.59922129]
[1756876318173,1.73922129,210.1,210.02,1.73922129]
[1756876318476,1.73922129,210.1,210.02,9.59922129]
[1756876319176,116.96,210.09,210.02,9.59922129]
[1756876321272,1.73922129,210.1,210.02,9.59922129]
[1756876321576,118.71922129,210.1,210.02,7.86]
[1756876321776,118.71922129,210.1,210.03,1.73922129]
[1756876326377,0.02,210.09,210.02,7.86]
[1756876326579,0.02,210.09,210.03,1.73922129]
[1756876327277,0.02,210.09,210.02,7.86]
[1756876327673,116.98,210.1,209.99,2.72072496]
[1756876327878,142.71182524,210.06,209.99,2.72072496]
[1756876328275,142.71182524,210.06,210.0,7.86]
[1756876328874,142.71182524,210.06,209.97,7.86]
[1756876330381,0.02,210.05,209.97,7.86]
[1756876337781,142.69182524,210.06,209.97,7.86]
[1756876338894,142.69182524,210.01,209.97,7.86]
[1756876341190,142.69182524,210.01,209.93,10.09072496]
[1756876343284,142.69182524,210.01,209.93,7.37]
[1756876343687,142.69182524,210.01,209.91,2.72072496]
[1756876343891,117.0,210.0,209.91,2.72072496]
[1756876344186,117.0,210.0,209.91,10.09072496]
[1756876344692,142.69182524,210.01,209.91,10.09072496]
[1756876344892,117.0,210.0,209.91,10.09072496]
[1756876345193,117.0,210.0,209.91,7.37]
[1756876345985,142.69182524,210.01,209.91,7.37]
[1756876346191,117.0,210.0,209.92,7.37]
[1756876348090,117.0,209.99,209.92,7.37]
[1756876348493,142.69182524,210.01,209.92,7.37]
[1756876348689,117.0,210.0,209.92,7.37]
[1756876348894,117.0,209.99,209.92,7.37]
[1756876350793,142.69182524,209.95,209.92,7.37]
[1756876351500,142.69182524,209.95,209.88,2.72072496]
[1756876351795,142.69182524,209.95,209.89,7.37]
[1756876358000,142.69182524,209.95,209.86,23.08]
[1756876358201,142.69182524,209.95,209.86,25.80072496]
[1756876358602,142.69182524,209.95,209.87,7.37]
[1756876360900,142.69182524,209.95,209.89,2.72072496]
[1756876361103,142.69182524,209.93,209.89,2.72072496]
[1756876361604,142.69182524,209.93,209.9,7.71]
[1756876364007,142.69182524,209.93,209.89,2.72072496]
[1756876364209,142.69182524,209.93,209.9,7.71]
[1756876365909,142.69182524,209.93,209.89,2.72072496]
[1756876366108,142.69182524,209.93,209.92,2.72072496]
[1756876366411,142.69182524,209.93,209.92,10.43072496]
[1756876368710,142.69182524,209.93,209.92,2.72072496]
[1756876369408,142.69182524,209.93,209.92,10.43072496]
[1756876372413,45.84642223,209.93,209.92,127.43072496]
[1756876372609,33.841514,209.93,209.92,127.43072496]
[1756876373318,142.69182524,209.95,209.92,127.43072496]
[1756876373513,79.68793623,209.95,209.92,119.72072496]
[1756876374211,79.68793623,209.95,209.93,7.71]
[1756876374410,142.69182524,210.01,209.93,7.71]
[1756876374610,285.38365048,210.01,209.97,10.43072496]
[1756876375011,285.38365048,210.01,209.97,2.72072496]
[1756876375417,285.38365048,210.01,209.94,116.98]
[1756876375612,285.38365048,210.01,209.94,124.69]
[1756876378926,285.38365048,210.01,209.95,116.98]
[1756876379221,116.98,210.03,209.95,116.98]
[1756876381526,116.98,210.03,209.96,7.71]
[1756876381926,5.3352231,210.07,209.96,7.71]
[1756876382126,116.96,210.06,209.96,7.71]
[1756876382829,5.3352231,210.07,209.96,7.71]
[1756876383030,47.0552231,210.07,209.96,7.71]
[1756876383531,5.3352231,210.07,209.96,7.71]
[1756876383831,86.6752231,210.07,209.96,7.71]
[1756876384132,5.3352231,210.07,209.96,7.71]
[1756876384328,47.0352231,210.07,209.96,7.71]
[1756876384636,142.69182524,210.0,209.95,116.96]
[1756876385233,142.69182524,210.0,209.95,124.67]
[1756876385832,142.69182524,210.0,209.95,7.71]
[1756876388932,142.69182524,210.0,209.94,10.43072496]
[1756876389533,142.69182524,210.0,209.97,1.74203665]
[1756876389733,142.69182524,210.0,209.98,142.69182524]
[1756876390130,142.69182524,210.0,209.98,150.40182524]
[1756876390328,142.69182524,210.0,209.98,142.69182524]
[1756876392929,142.69182524,210.0,209.98,144.43386189]
[1756876393235,142.69182524,210.0,209.99,7.44]
[1756876393428,142.69182524,210.0,209.99,9.18203665]
[1756876394534,142.69182524,210.0,209.99,7.44]
[1756876394835,142.69182524,210.0,209.99,9.18203665]
[1756876397332,142.69182524,210.0,209.99,1.74203665]
[1756876397528,142.69182524,210.0,209.99,9.18203665]
[1756876402739,142.69182524,210.0,209.99,1.74203665]
[1756876405443,142.69182524,210.0,209.99,9.18203665]
[1756876405945,142.69182524,210.0,209.99,151.87386189]
[1756876406335,142.69182524,210.0,209.99,150.13182524]
[1756876406535,142.69182524,210.0,209.99,151.87386189]
[1756876407644,5.3352231,210.13,210.0,7.44]
[1756876407938,116.88,210.12,210.07,1.74203665]
[1756876408244,1.74203665,210.15,210.06,1.74203665]
[1756876408443,116.88,210.14,210.07,116.88]
[1756876409945,1.74203665,210.15,210.07,116.88]
[1756876410146,116.88,210.14,210.08,1.74203665]
[1756876410545,1.74203665,210.15,210.08,1.74203665]
[1756876411637,1.74203665,210.15,210.07,116.88]
[1756876412347,1.74203665,210.15,210.07,118.62203665]
[1756876413042,1.74203665,210.15,210.08,1.74203665]
[1756876415146,1.74203665,210.15,210.07,118.62203665]
[1756876417450,1.74203665,210.15,210.07,116.88]
[1756876417749,1.74203665,210.15,210.09,1.74203665]
[1756876417950,1.74203665,210.15,210.1,232.29065794]
[1756876419443,5.3352231,210.2,210.1,232.29065794]
[1756876419444,1.74203665,210.19,210.11,9.18203665]
[1756876420351,1.74203665,210.19,210.13,9.18203665]
[1756876421149,1.74203665,210.17,210.1,232.29065794]
[1756876421348,22.9,210.22,210.1,232.29065794]
[1756876421349,1.74203665,210.15,210.1,232.29065794]
[1756876422552,1.74203665,210.15,210.1,239.91065794]
[1756876423851,1.74203665,210.17,210.1,232.29065794]
[1756876426059,1.74203665,210.19,210.13,7.62]
[1756876429155,1.74203665,210.19,210.12,1.74203665]
[1756876429156,1.74203665,210.19,210.1,232.29065794]
[1756876429361,1.74203665,210.19,210.12,232.29065794]
[1756876433457,1.74203665,210.19,210.13,7.62]
[1756876438769,293.38,210.28,210.13,7.62]
[1756876438770,5.3352231,210.23,210.15,1.74203665]
[1756876438959,1.74203665,210.22,210.16,7.62]
[1756876439158,1.74203665,210.23,210.16,7.62]
[1756876439364,1.74203665,210.25,210.19,7.62]
[1756876440067,1.74203665,210.27,210.19,7.62]
[1756876440768,1.74203665,210.27,210.19,9.36203665]
[1756876444070,1.74203665,210.25,210.19,7.62]
[1756876445368,1.74203665,210.23,210.19,7.62]
[1756876445564,1.74203665,210.24,210.16,7.62]
[1756876445764,1.74203665,210.24,210.18,7.62]
[1756876445969,298.7152231,210.28,210.2,7.62]
[1756876445970,1.74203665,210.26,210.2,7.62]
[1756876447362,5.3352231,210.3,210.22,7.62]
[1756876447560,1.74203665,210.29,210.22,7.62]
[1756876448161,1.74203665,210.29,210.22,9.36203665]
[1756876449572,8.05076477,210.33,210.26,7.62]
[1756876450473,2.71554167,210.33,210.26,7.62]
[1756876450970,124.79076477,210.33,210.26,7.62]
[1756876452269,5.3352231,210.32,210.26,7.62]
[1756876453872,5.3352231,210.31,210.25,232.29065794]
[1756876454074,5.3352231,210.31,210.25,240.01065794]
[1756876454274,5.3352231,210.32,210.25,240.01065794]
[1756876461480,5.3352231,210.32,210.25,232.29065794]
[1756876461780,5.3352231,210.32,210.26,7.72]
[1756876461986,124.79076477,210.33,210.26,7.72]
[1756876462181,119.45554167,210.33,210.26,7.72]
[1756876462386,8.05076477,210.33,210.26,7.72]
[1756876464480,8.05076477,210.33,210.25,232.29065794]
[1756876464481,5.3352231,210.35,210.28,7.72]
[1756876465283,5.3352231,210.36,210.28,7.72]
[1756876473991,5.3352231,210.35,210.28,7.72]
[1756876479303,5.3352231,210.34,210.28,7.72]
[1756876479501,5.3352231,210.34,210.31,240.01065794]
[1756876481504,5.3352231,210.34,210.32,7.52]
[1756876481696,5.3352231,210.35,210.32,7.52]
[1756876481896,5.3352231,210.35,210.31,232.29065794]
[1756876482102,5.3352231,210.34,210.31,232.29065794]
[1756876482301,5.3352231,210.34,210.31,239.81065794]
[1756876482603,5.3352231,210.33,210.31,239.81065794]
[1756876483601,5.3352231,210.33,210.32,7.52]
[1756876484098,5.3352231,210.35,210.32,7.52]
[1756876484799,5.3352231,210.35,210.31,232.29065794]
[1756876485103,5.3352231,210.35,210.32,7.52]
[1756876485404,5.3352231,210.35,210.31,232.29065794]
[1756876486104,5.3352231,210.35,210.32,7.52]
[1756876486400,5.3352231,210.35,210.31,232.29065794]
[1756876486699,5.3352231,210.35,210.32,7.52]
[1756876487005,5.3352231,210.35,210.31,232.29065794]
[1756876487206,5.3352231,210.35,210.32,7.52]
[1756876487808,5.3352231,210.35,210.31,232.29065794]
[1756876488107,116.62,210.36,210.31,232.29065794]
[1756876488108,5.3352231,210.34,210.31,232.29065794]
[1756876489905,5.3352231,210.34,210.32,7.52]
[1756876490307,5.3352231,210.33,210.32,7.52]
[1756876490507,5.3352231,210.33,210.32,239.81065794]
[1756876492005,5.3352231,210.33,210.32,232.29065794]
[1756876493008,10.73609024,210.34,210.32,232.29065794]
[1756876494010,8.02054857,210.33,210.32,232.29065794]
[1756876495808,8.02054857,210.35,210.32,232.29065794]
[1756876496014,124.62054857,210.36,210.32,232.29065794]
[1756876496213,5.33722784,210.34,210.32,232.29065794]
[1756876496614,5.33722784,210.34,210.33,7.52]
[1756876497513,5.33703966,210.35,210.33,7.52]
[1756876497813,50.28,210.37,210.33,7.52]
[1756876498620,8.02054857,210.39,210.33,7.52]
[1756876498913,81.92,210.4,210.34,7.52]
[1756876499810,116.58,210.41,210.34,7.52]
[1756876504820,5.32,210.43,210.34,7.52]
[1756876505024,5.32,210.41,210.38,232.29065794]
[1756876505623,5.32,210.4,210.38,232.29065794]
[1756876505820,10.73609024,210.41,210.38,232.29065794]
[1756876506015,5.32,210.39,210.38,232.29065794]
[1756876506316,5.32,210.39,210.38,229.31758701]
[1756876508023,13.34054857,210.39,210.38,229.31758701]